lending/lending_fUSD_20250131
["ID","MTS","AMOUNT","RATE_DAILY","PERIOD"]
[351075127,1738324295756,-500.0,0.00017671,2]
[351075128,1738324295767,-702.08,0.00017671,2]
[351075129,1738324295776,-902.1,0.00017671,2]
[351075130,1738324295786,-500.0,0.00017671,2]
[351075131,1738324295795,-1092.24,0.00017671,2]
[351075132,1738324295807,-1500.41,0.00017671,2]
[351075133,1738324295816,-500.0,0.00017671,2]
[351075134,1738324295826,-1310.52,0.00017671,2]
[351075135,1738324295835,-508.65901556,0.00017671,2]
[351075136,1738324295846,-551.18,0.00017671,2]
[351075137,1738324295856,-1011.5,0.00017671,2]
[351075138,1738324295868,-916.25,0.00017671,2]
[351075139,1738324295878,-500.0,0.00017671,2]
[351075140,1738324295889,-1126.48,0.00017671,2]
[351075141,1738324295900,-693.05,0.00017671,2]
[351075142,1738324295909,-891.26,0.00017671,2]
[351075143,1738324295919,-1804.91,0.00017671,2]
[351075144,1738324295929,-500.0,0.00017671,2]
[351075145,1738324295940,-510.91,0.00017671,2]
[351075146,1738324295951,-837.12,0.00017671,2]
[351075147,1738324295961,-1280.98,0.00017671,2]
[351075148,1738324295971,-2176.78,0.00017671,2]
[351075149,1738324295982,-810.56,0.00017671,2]
[351075150,1738324295992,-1303.52,0.00017671,2]
[351075151,1738324296003,-1028.63,0.00017671,2]
[351075152,1738324296013,-690.75,0.00017671,2]
[351075153,1738324296023,-500.0,0.00017671,2]
[351075154,1738324296033,-500.0,0.00017671,2]
[351075155,1738324296043,-1122.1,0.00017671,2]
[351075156,1738324296054,-829.61,0.00017671,2]
[351075157,1738324296063,-500.0,0.00017671,2]
[351075158,1738324296073,-500.0,0.00017671,2]
[351075159,1738324296084,-1681.91,0.00017671,2]
[351075160,1738324296095,-1061.98,0.00017671,2]
[351075161,1738324296107,-518.5,0.00017671,2]
[351075162,1738324296116,-726.56,0.00017671,2]
[351075163,1738324296126,-500.0,0.00017671,2]
[351075164,1738324296135,-2007.82,0.00017671,2]
[351075165,1738324296145,-799.55,0.00017671,2]
[351075166,1738324296154,-500.0,0.00017671,2]
[351075167,1738324296165,-500.0,0.00017671,2]
[351075168,1738324296176,-636.81795436,0.00017671,2]
[351075169,1738324296186,-511.91,0.00017671,2]
[351075170,1738324296196,-676.71,0.00017671,2]
[351075171,1738324296206,-500.0,0.00017671,2]
[351075172,1738324296215,-918.95,0.00017671,2]
[351075173,1738324296226,-500.0,0.00017671,2]
[351075174,1738324296236,-500.0,0.00017671,2]
[351075175,1738324296246,-500.0,0.00017671,2]
[351075176,1738324296255,-599.29,0.00017671,2]
[351075177,1738324296264,-716.74,0.00017671,2]
[351075178,1738324296274,-1428.42,0.00017671,2]
[351075179,1738324296284,-500.0,0.00017671,2]
[351075180,1738324296294,-1061.29,0.00017671,2]
[351075181,1738324296303,-500.0,0.00017671,2]
[351075182,1738324296312,-500.0,0.00017671,2]
[351075183,1738324296322,-848.88,0.00017671,2]
[351075184,1738324296331,-500.0,0.00017671,2]
[351075185,1738324296341,-993.25,0.00017671,2]
[351075186,1738324296351,-884.9,0.00017671,2]
[351075187,1738324296361,-500.0,0.00017671,2]
[351075188,1738324296373,-1320.85,0.00017671,2]
[351075189,1738324296382,-765.04,0.00017671,2]
[351075190,1738324296393,-593.46,0.00017671,2]
[351075191,1738324296402,-500.0,0.00017671,2]
[351075192,1738324296412,-500.0,0.00017671,2]
[351075193,1738324296422,-787.26,0.00017671,2]
[351075194,1738324296432,-769.42,0.00017671,2]
[351075195,1738324296442,-517.63,0.00017671,2]
[351075196,1738324296452,-500.0,0.00017671,2]
[351075197,1738324296462,-1125.66,0.00017671,2]
[351075198,1738324296474,-500.0,0.00017671,2]
[351075199,1738324296484,-500.0,0.00017671,2]
[351075200,1738324296493,-500.0,0.00017671,2]
[351075201,1738324296503,-500.0,0.00017671,2]
[351075202,1738324296514,-1433.15,0.00017671,2]
[351075203,1738324296524,-500.0,0.00017671,2]
[351075204,1738324296534,-1042.52,0.00017671,2]
[351075205,1738324296545,-867.02,0.00017671,2]
[351075206,1738324296556,-997.01,0.00017671,2]
[351075207,1738324296567,-500.0,0.00017671,2]
[351075208,1738324296577,-719.79,0.00017671,2]
[351075209,1738324296587,-888.43,0.00017671,2]
[351075210,1738324296597,-500.0,0.00017671,2]
[351075211,1738324296607,-500.0,0.00017671,2]
[351075212,1738324296616,-725.69,0.00017671,2]
[351075213,1738324296626,-571.64,0.00017671,2]
[351075214,1738324296635,-1332.95,0.00017671,2]
[351075215,1738324296645,-964.72,0.00017671,2]
[351075216,1738324296655,-701.0,0.00017671,2]
[351075217,1738324296665,-500.0,0.00017671,2]
[351075218,1738324296674,-500.0,0.00017671,2]
[351075219,1738324296684,-320.47805066,0.00017671,2]
[351075220,1738324296693,-765.32,0.00017671,2]
[351075221,1738324296703,-576.92,0.00017671,2]
[351075222,1738324296713,-615.17,0.00017671,2]
[351075223,1738324296722,-535.49,0.00017671,2]
[351075224,1738324296732,-627.28,0.00017671,2]
[351075225,1738324296742,-303.95435605,0.00017671,2]
[351075226,1738324296752,-1202.37,0.00017671,2]
[351075227,1738324296761,-711.34,0.00017671,2]
[351075228,1738324296772,-500.0,0.00017671,2]
[351075229,1738324296781,-600.25,0.00017671,2]
[351075230,1738324296792,-500.0,0.00017671,2]
[351075231,1738324296801,-659.44,0.00017671,2]
[351075232,1738324296811,-1154.79,0.00017671,2]
[351075233,1738324296821,-1349.79,0.00017671,2]
[351075234,1738324296831,-1640.4,0.00017671,2]
[351075235,1738324296842,-1030.03,0.00017671,2]
[351075236,1738324296852,-500.0,0.00017671,2]
[351075237,1738324296862,-500.0,0.00017671,2]
[351075238,1738324296872,-5467.92,0.00017671,2]
[351075239,1738324296883,-896.49,0.00017671,2]
[351075240,1738324296893,-500.0,0.00017671,2]
[351075241,1738324296903,-500.0,0.00017671,2]
[351075242,1738324296913,-1077.54,0.00017671,2]
[351075243,1738324296922,-500.0,0.00017671,2]
[351075244,1738324296933,-1255.47,0.00017671,2]
[351075245,1738324296943,-500.0,0.00017671,2]
[351075246,1738324296953,-723.14,0.00017671,2]
[351075247,1738324296963,-4908.05,0.00017671,2]
[351075248,1738324296974,-650.38,0.00017671,2]
[351075249,1738324296984,-8946.44,0.00017671,2]
[351075250,1738324296995,-1612.26,0.00017671,2]
[351075251,1738324297006,-721.22,0.00017671,2]
[351075252,1738324297016,-500.0,0.00017671,2]
[351075253,1738324297026,-500.0,0.00017671,2]
[351075254,1738324297036,-689.81,0.00017671,2]
[351075255,1738324297046,-2525.83,0.00017671,2]
[351075256,1738324297056,-500.0,0.00017671,2]
[351075257,1738324297066,-500.0,0.00017671,2]
[351075258,1738324297075,-959.01,0.00017671,2]
[351075259,1738324297085,-1040.27,0.00017671,2]
[351075260,1738324297095,-500.0,0.00017671,2]
[351075261,1738324297105,-500.0,0.00017671,2]
[351075262,1738324297115,-2875.98,0.00017671,2]
[351075263,1738324297124,-1113.32,0.00017671,2]
[351075264,1738324297133,-500.0,0.00017671,2]
[351075265,1738324297143,-617.88,0.00017671,2]
[351075266,1738324297153,-5694.9,0.00017671,2]
[351075267,1738324297163,-1040.72,0.00017671,2]
[351075268,1738324297172,-1058.53,0.00017671,2]
[351075269,1738324297182,-1227.18,0.00017671,2]
[351075270,1738324297192,-948.13,0.00017671,2]
[351075271,1738324297202,-3754.06,0.00017671,2]
[351075272,1738324297212,-500.0,0.00017671,2]
[351075273,1738324297223,-500.0,0.00017671,2]
[351075274,1738324297233,-926.1,0.00017671,2]
[351075275,1738324297243,-544.72,0.00017671,2]
[351075276,1738324297254,-1099.32,0.00017671,2]
[351075277,1738324297264,-1733.44,0.00017671,2]
[351075278,1738324297274,-500.0,0.00017671,2]
[351075279,1738324297284,-500.0,0.00017671,2]
[351075280,1738324297294,-572.9,0.00017671,2]
[351075281,1738324297304,-2122.94,0.00017671,2]
[351075282,1738324297313,-500.0,0.00017671,2]
[351075283,1738324297323,-999.67,0.00017671,2]
[351075284,1738324297332,-1048.57,0.00017671,2]
[351075285,1738324297342,-804.81,0.00017671,2]
[351075286,1738324297351,-2648.61,0.00017671,2]
[351075287,1738324297361,-1037.49,0.00017671,2]
[351075288,1738324297370,-534.82,0.00017671,2]
[351075289,1738324297379,-1145.86,0.00017671,2]
[351075290,1738324297389,-500.0,0.00017671,2]
[351075291,1738324297399,-500.0,0.00017671,2]
[351075292,1738324297408,-2396.97,0.00017671,2]
[351075293,1738324297418,-3204.6,0.00017671,2]
[351075294,1738324297428,-1402.68,0.00017671,2]
[351075295,1738324297438,-1040.29,0.00017671,2]
[351075296,1738324297448,-2903.69,0.00017671,2]
[351075297,1738324297458,-7288.6,0.00017671,2]
[351075298,1738324297471,-500.0,0.00017671,2]
[351075299,1738324297482,-500.0,0.00017671,2]
[351075300,1738324297764,-587.79,0.00017671,2]
[351075301,1738324297783,-562.58,0.00017671,2]
[351075302,1738324297793,-515.14,0.00017671,2]
[351075303,1738324297804,-2495.23,0.00017671,2]
[351075304,1738324297813,-2248.25,0.00017671,2]
[351075305,1738324297823,-2728.26,0.00017671,2]
[351075306,1738324297833,-1028.79,0.00017671,2]
[351075307,1738324297844,-846.48,0.00017671,2]
[351075308,1738324297854,-2792.79,0.00017671,2]
[351075309,1738324297864,-215.75269381,0.00017671,2]
[351075310,1738324297874,-1342.18,0.00017671,2]
[351075311,1738324297884,-1680.63,0.00017671,2]
[351075312,1738324297894,-440.39007919,0.00017671,2]
[351075313,1738324297904,-500.0,0.00017671,2]
[351075314,1738324297914,-1248.18,0.00017671,2]
[351075315,1738324297924,-620.67,0.00017671,2]
[351075316,1738324297934,-843.34,0.00017671,2]
[351075317,1738324297945,-500.0,0.00017671,2]
[351075318,1738324297955,-1421.21,0.00017671,2]
[351075319,1738324297966,-1109.38,0.00017671,2]
[351075320,1738324297979,-6503.84,0.00017671,2]
[351075321,1738324297990,-351.36,0.00017671,2]
[351075322,1738324298001,-1665.65,0.00017671,2]
[351075323,1738324298013,-1885.24,0.00017671,2]
[351075324,1738324298024,-720.26,0.00017671,2]
[351075325,1738324298034,-2053.62,0.00017671,2]
[351075326,1738324298045,-996.21,0.00017671,2]
[351075327,1738324298056,-500.0,0.00017671,2]
[351075328,1738324298066,-558.19,0.00017671,2]
[351075329,1738324298076,-500.0,0.00017671,2]
[351075330,1738324298086,-3146.24,0.00017671,2]
[351075331,1738324298096,-1284.37,0.00017671,2]
[351075332,1738324298105,-2333.73,0.00017671,2]
[351075333,1738324298115,-2084.37,0.00017671,2]
[351075334,1738324298125,-884.01,0.00017671,2]
[351075335,1738324298135,-1136.43,0.00017671,2]
[351075336,1738324298144,-2854.98,0.00017671,2]
[351075337,1738324298153,-500.0,0.00017671,2]
[351075338,1738324298163,-1104.94,0.00017671,2]
[351075339,1738324298172,-2946.69,0.00017671,2]
[351075340,1738324298182,-1871.77,0.00017671,2]
[351075341,1738324298192,-941.15,0.00017671,2]
[351075342,1738324298203,-1115.29,0.00017671,2]
[351075343,1738324298213,-828.12,0.00017671,2]
[351075344,1738324298225,-500.0,0.00017671,2]
[351075345,1738324298235,-2224.33,0.00017671,2]
[351075346,1738324298245,-500.0,0.00017671,2]
[351075347,1738324298255,-3489.24,0.00017671,2]
[351075348,1738324298265,-746.73,0.00017671,2]
[351075349,1738324298275,-1077.54,0.00017671,2]
[351075350,1738324298285,-1806.93,0.00017671,2]
[351075351,1738324298295,-1991.21,0.00017671,2]
[351075352,1738324298306,-760.46,0.00017671,2]
[351075353,1738324298317,-526.27,0.00017671,2]
[351075354,1738324298327,-753.74,0.00017671,2]
[351075355,1738324298337,-1343.99,0.00017671,2]
[351075356,1738324298347,-855.25,0.00017671,2]
[351075357,1738324298356,-500.0,0.00017671,2]
[351075358,1738324298366,-1812.45,0.00017671,2]
[351075359,1738324298377,-1716.99,0.00017671,2]
[351075360,1738324298387,-3889.3,0.00017671,2]
[351075361,1738324298396,-528.68,0.00017671,2]
[351075362,1738324298406,-3037.65,0.00017671,2]
[351075363,1738324298415,-2335.67,0.00017671,2]
[351075364,1738324298424,-522.49726945,0.00017671,2]
[351075365,1738324298434,-500.0,0.00017671,2]
[351075366,1738324298443,-2291.82,0.00017671,2]
[351075367,1738324298453,-1603.26,0.00017671,2]
[351075368,1738324298468,-1077.26,0.00017671,2]
[351075369,1738324298481,-2970.63,0.00017671,2]
[351075370,1738324298490,-611.16,0.00017671,2]
[351075371,1738324298500,-500.0,0.00017671,2]
[351075372,1738324298511,-1305.13,0.00017671,2]
[351075373,1738324298520,-833.14,0.00017671,2]
[351075374,1738324298530,-2952.79,0.00017671,2]
[351075375,1738324298540,-1857.79,0.00017671,2]
[351075376,1738324298550,-2508.56,0.00017671,2]
[351075377,1738324298560,-571.37,0.00017671,2]
[351075378,1738324298570,-500.0,0.00017671,2]
[351075379,1738324298580,-2131.57,0.00017671,2]
[351075380,1738324298590,-1359.58,0.00017671,2]
[351075381,1738324298599,-7600.5,0.00017671,2]
[351075382,1738324298609,-2358.13,0.00017671,2]
[351075383,1738324298619,-1709.43,0.00017671,2]
[351075384,1738324298628,-6466.54,0.00017671,2]
[351075385,1738324298637,-4392.29,0.00017671,2]
[351075386,1738324298647,-3526.47,0.00017671,2]
[351075387,1738324298657,-1166.07,0.00017671,2]
[351075388,1738324298667,-3157.78,0.00017671,2]
[351075389,1738324298676,-1381.21,0.00017671,2]
[351075390,1738324298686,-502.7,0.00017671,2]
[351075391,1738324298695,-4490.0,0.00017671,2]
[351075392,1738324298705,-2412.99,0.00017671,2]
[351075393,1738324298715,-3967.33,0.00017671,2]
[351075394,1738324298726,-500.0,0.00017671,2]
[351075395,1738324298736,-4440.42,0.00017671,2]
[351075396,1738324298745,-1626.43,0.00017671,2]
[351075397,1738324298755,-734.46,0.00017671,2]
[351075398,1738324298765,-6910.43,0.00017671,2]
[351075399,1738324298775,-2558.37,0.00017671,2]
[351075400,1738324298785,-1323.77,0.00017671,2]
[351075401,1738324298795,-500.0,0.00017671,2]
[351075402,1738324298805,-2783.46,0.00017671,2]
[351075403,1738324298814,-3244.93,0.00017671,2]
[351075404,1738324298823,-2061.66,0.00017671,2]
[351075405,1738324298832,-1490.44,0.00017671,2]
[351075406,1738324298842,-1646.19,0.00017671,2]
[351075407,1738324298853,-601.89,0.00017671,2]
[351075408,1738324298863,-1606.89,0.00017671,2]
[351075409,1738324298872,-1840.26,0.00017671,2]
[351075410,1738324298882,-580.84,0.00017671,2]
[351075411,1738324298892,-2593.65,0.00017671,2]
[351075412,1738324298902,-5319.28,0.00017671,2]
[351075413,1738324298911,-1571.41,0.00017671,2]
[351075414,1738324298921,-1321.81,0.00017671,2]
[351075415,1738324298931,-500.0,0.00017671,2]
[351075416,1738324298940,-500.0,0.00017671,2]
[351075417,1738324298950,-500.0,0.00017671,2]
[351075418,1738324298960,-7695.6,0.00017671,2]
[351075419,1738324298970,-500.0,0.00017671,2]
[351075420,1738324298981,-673.9,0.00017671,2]
[351075421,1738324298996,-531.37,0.00017671,2]
[351075422,1738324299007,-1931.96,0.00017671,2]
[351075423,1738324299018,-907.61,0.00017671,2]
[351075424,1738324299028,-500.0,0.00017671,2]
[351075425,1738324299038,-12891.46,0.00017671,2]
[351075426,1738324299048,-500.0,0.00017671,2]
[351075427,1738324299058,-1128.39,0.00017671,2]
[351075428,1738324299068,-1099.89,0.00017671,2]
[351075429,1738324299079,-4096.93,0.00017671,2]
[351075430,1738324299089,-2100.31,0.00017671,2]
[351075431,1738324299099,-534.18,0.00017671,2]
[351075432,1738324299110,-1110.8,0.00017671,2]
[351075433,1738324299120,-449.42146423,0.00017671,2]
[351075434,1738324299130,-500.0,0.00017671,2]
[351075435,1738324299140,-538.53,0.00017671,2]
[351075436,1738324299150,-2207.75,0.00017671,2]
[351075437,1738324299160,-1651.63,0.00017671,2]
[351075438,1738324299170,-638.79,0.00017671,2]
[351075439,1738324299180,-1205.82,0.00017671,2]
[351075440,1738324299190,-699.74,0.00017671,2]
[351075441,1738324299200,-500.0,0.00017671,2]
[351075442,1738324299210,-500.0,0.00017717,7]
[351075443,1738324299220,-2023.77,0.00017728,2]
[351075444,1738324299232,-29999.99,0.00017728,2]
[351075445,1738324299242,-590.24,0.00017807,2]
[351075446,1738324299252,-500.0,0.00017808,2]
[351075447,1738324299262,-667.17,0.00017808,2]
[351075448,1738324299271,-2074.409289,0.00017808,2]
[351075449,1738324299282,-820.59,0.00017808,2]
[351075450,1738324299292,-153.436238,0.00017808,2]
[351075451,1738324299301,-500.0,0.00017808,2]
[351075452,1738324299312,-759.88,0.00017808,2]
[351075453,1738324299322,-1436.587895,0.00017808,2]
[351075454,1738324299331,-500.0,0.00017808,2]
[351075455,1738324299341,-500.0,0.00017808,2]
[351075456,1738324299352,-500.0,0.00017808,2]
[351075457,1738324299361,-500.0,0.00017808,2]
[351075458,1738324299372,-617.56,0.00017808,2]
[351075459,1738324299383,-500.0,0.00017808,2]
[351075460,1738324299392,-500.0,0.00017808,2]
[351075461,1738324299402,-500.0,0.00017808,2]
[351075462,1738324299412,-500.0,0.00017808,2]
[351075463,1738324299422,-500.0,0.00017808,2]
[351075464,1738324299432,-500.0,0.00017808,2]
[351075465,1738324299442,-509.1,0.00017808,2]
[351075466,1738324299452,-1234.71,0.00017808,2]
[351075467,1738324299462,-500.0,0.00017808,2]
[351075468,1738324299475,-536.29,0.00017808,2]
[351075469,1738324299484,-1312.75,0.00017808,2]
[351075470,1738324299494,-1015.25,0.00017808,2]
[351075471,1738324299503,-725.65,0.00017808,2]
[351075472,1738324299514,-500.0,0.00017808,2]
[351075473,1738324299524,-721.66,0.00017808,2]
[351075474,1738324299534,-693.56,0.00017808,2]
[351075475,1738324299546,-563.28,0.00017808,2]
[351075476,1738324299556,-1762.66,0.00017808,2]
[351075477,1738324299566,-500.0,0.00017808,2]
[351075478,1738324299577,-580.28,0.00017808,2]
[351075479,1738324299587,-1817.38,0.00017808,2]
[351075480,1738324299596,-742.3,0.00017808,2]
[351075481,1738324299606,-500.0,0.00017808,2]
[351075482,1738324299616,-500.0,0.00017808,2]
[351075483,1738324299626,-500.0,0.00017808,2]
[351075484,1738324299635,-1483.82,0.00017808,2]
[351075485,1738324299645,-500.0,0.00017808,2]
[351075486,1738324299655,-755.76,0.00017808,2]
[351075487,1738324299664,-1267.56,0.00017808,2]
[351075488,1738324299675,-500.0,0.00017808,2]
[351075489,1738324299684,-500.0,0.00017808,2]
[351075490,1738324299693,-876.85,0.00017808,2]
[351075491,1738324299703,-500.0,0.00017808,2]
[351075492,1738324299713,-631.82,0.00017808,2]
[351075493,1738324299722,-500.0,0.00017808,2]
[351075494,1738324299733,-500.0,0.00017808,2]
[351075495,1738324299742,-500.0,0.00017808,2]
[351075496,1738324299752,-946.0,0.00017808,2]
[351075497,1738324299761,-793.42,0.00017808,2]
[351075498,1738324299770,-1051.17,0.00017808,2]
[351075499,1738324299779,-614.76,0.00017808,2]
[351075500,1738324299789,-1621.42,0.00017808,2]
[351075501,1738324299798,-500.0,0.00017808,2]
[351075502,1738324299808,-1050.41,0.00017808,2]
[351075503,1738324299819,-192.71506884,0.00017808,2]
[351075504,1738324299828,-500.0,0.00017808,2]
[351075505,1738324299838,-571.26,0.00017808,2]
[351075506,1738324299849,-1105.7,0.00017808,2]
[351075507,1738324299859,-500.0,0.00017808,2]
[351075508,1738324299870,-719.71,0.00017808,2]
[351075509,1738324299881,-522.61,0.00017808,2]
[351075510,1738324299890,-1206.79,0.00017808,2]
[351075511,1738324299901,-2899.61,0.00017808,2]
[351075512,1738324299910,-1118.53,0.00017808,2]
[351075513,1738324299921,-190.50545589,0.00017808,2]
[351075514,1738324300262,-411.65454411,0.00017808,2]
[351075515,1738324300274,-374.67877875,0.00017808,2]
[351075516,1738324300323,-469.82122125,0.00017808,2]
[351075517,1738324300332,-163.86292482,0.00017808,2]
[351075518,1738324300343,-363.41687898,0.00017808,2]
[351075519,1738324300354,-35.6188469,0.00017808,2]
[351075520,1738324300363,-500.0,0.00017808,2]
[351075521,1738324300372,-297.3117131,0.00017808,2]
[351075526,1738324629582,166.26,0.00010137,2]
[351075528,1738324940325,173.85,0.00012055,2]
[351075533,1738325332215,550.0,0.00013,2]
[351075537,1738325432179,-1598.25,0.00013409,2]
[351075538,1738325432190,-150.0,0.00013631,2]
[351075539,1738325432200,-1239.94452381,0.00013854,2]
[351075540,1738325432210,-150.0,0.00013954,2]
[351075541,1738325432219,-328.0,0.000143,5]
[351075542,1738325432229,-2210.247046,0.00014327,2]
[351075543,1738325432238,-1239.9445238,0.00014399,2]
[351075544,1738325432247,-300.0,0.00014425,2]
[351075545,1738325432256,-5670.70415835,0.00014426,2]
[351075546,1738325432266,-165.22,0.00014499,2]
[351075547,1738325432275,-198.5995771,0.00014623,2]
[351075548,1738325432285,-1772.89,0.00014696,2]
[351075549,1738325432294,-150.0,0.0001475,2]
[351075550,1738325432303,-150.0,0.0001475,2]
[351075551,1738325432313,-150.0,0.0001475,2]
[351075552,1738325432322,-150.0,0.0001475,2]
[351075553,1738325432331,-541.01,0.00014798,2]
[351075554,1738325432340,-169.97,0.00014952,2]
[351075555,1738325432349,-169.97,0.00014977,2]
[351075556,1738325432359,-600.0,0.00015,2]
[351075557,1738325432368,-169.97,0.00015002,2]
[351075558,1738325432389,-267.77,0.00015023,2]
[351075559,1738325432399,-169.97,0.00015027,2]
[351075560,1738325432408,-173.85,0.00015069,2]
[351075561,1738325432418,-22099.0,0.00015076,2]
[351075562,1738325432428,-198.59957708,0.00015091,2]
[351075563,1738325432438,-200.0,0.00015381,2]
[351075564,1738325432447,-799.82,0.00015401,2]
[351075565,1738325432457,-173.62,0.00015478,2]
[351075566,1738325432467,-1000.0,0.00015479,2]
[351075567,1738325432476,-195.0,0.00015479,2]
[351075568,1738325432486,-1840.38,0.00015533,2]
[351075569,1738325432495,-4167.5054,0.00015559,2]
[351075570,1738325432505,-9456.6498,0.00015559,2]
[351075571,1738325432514,-441.7338,0.00015559,2]
[351075572,1738325432524,-198.59957708,0.00015559,2]
[351075573,1738325432534,-12710.27084027,0.00015659,2]
[351075574,1738325432546,-310.05771303,0.00015659,2]
[351075575,1738325432572,-3165.50000002,0.00015659,2]
[351075576,1738325432602,-1103.55713475,0.00015659,2]
[351075577,1738325432614,-4083.97191221,0.00015659,2]
[351075578,1738325435730,-15969.32239972,0.00015659,2]
[351075579,1738325435739,-23900.0,0.00015659,2]
[351075580,1738325435748,-1598.25,0.00015673,2]
[351075581,1738325435757,-223.34,0.00015789,2]
[351075582,1738325435766,-250.0,0.00015888,2]
[351075583,1738325435775,-1500.0,0.00015888,2]
[351075584,1738325435784,-598.7328,0.00016238,2]
[351075585,1738325435793,-304.56,0.00016238,2]
[351075586,1738325435802,-1818.7627,0.00016238,2]
[351075587,1738325435811,-34540.2949,0.00016238,2]
[351075588,1738325435820,-1000.0,0.00016238,2]
[351075589,1738325435828,-353.9518,0.00016238,2]
[351075590,1738325435837,-2500.0,0.00016238,2]
[351075591,1738325435846,-2602.96646361,0.00016338,2]
[351075592,1738325435855,-413.3313,0.00016338,2]
[351075593,1738325435864,-2219.3902,0.00016338,2]
[351075594,1738325435873,-65775.8509,0.00016338,2]
[351075595,1738325435882,-1000.0,0.00016338,2]
[351075596,1738325435891,-8115.1159,0.00016338,2]
[351075597,1738325435901,-5000.0,0.00016338,2]
[351075598,1738325435909,-500.0,0.00016338,2]
[351075599,1738325435918,-93163.2847,0.00016338,2]
[351075600,1738325435927,-171.32,0.00016379,2]
[351075601,1738325435936,-532.89367826,0.00016438,2]
[351075602,1738325435945,-403.13644929,0.00016438,2]
[351075603,1738325435954,-345.13709085,0.00016438,2]
[351075604,1738325435963,-500.0,0.00016438,2]
[351075605,1738325435972,-500.0,0.00016438,2]
[351075606,1738325435986,-530.17013201,0.00016438,2]
[351075608,1738325435995,-500.0,0.00016438,2]
[351075610,1738325436004,-501.62938902,0.00016438,2]
[351075612,1738325436013,-501.14235838,0.00016438,2]
[351075614,1738325436022,-501.39798493,0.00016438,2]
[351075616,1738325436031,-500.0,0.00016438,2]
[351075618,1738325436040,-150.4209366,0.00016438,2]
[351075619,1738325436049,-500.0,0.00016438,2]
[351075621,1738325436058,-1303.463318,0.00016438,2]
[351075623,1738325436067,-153.436238,0.00016438,2]
[351075625,1738325436077,-452.80826571,0.00016438,2]
[351075627,1738325436086,-500.0,0.00016438,2]
[351075629,1738325436096,-156.034424,0.00016438,2]
[351075631,1738325436105,-500.0,0.00016438,2]
[351075633,1738325436115,-500.0,0.00016438,2]
[351075635,1738325436124,-500.0,0.00016438,2]
[351075637,1738325436133,-500.0,0.00016438,2]
[351075640,1738325436143,-907.032528,0.00016438,2]
[351075641,1738325436152,-500.0,0.00016438,2]
[351075643,1738325436161,-300.0,0.00016438,2]
[351075646,1738325436171,-500.0,0.00016438,2]
[351075647,1738325436181,-500.0,0.00016438,2]
[351075649,1738325436190,-500.0,0.00016438,2]
[351075651,1738325436199,-500.0,0.00016438,2]
[351075653,1738325436208,-500.0,0.00016438,2]
[351075655,1738325436217,-153.436239,0.00016438,2]
[351075657,1738325436226,-500.0,0.00016438,2]
[351075659,1738325436235,-500.0,0.00016438,2]
[351075661,1738325436244,-500.0,0.00016438,2]
[351075663,1738325436253,-500.10793587,0.00016438,2]
[351075665,1738325436262,-500.0,0.00016438,2]
[351075667,1738325436272,-500.0,0.00016438,2]
[351075669,1738325436282,-500.0,0.00016438,2]